[Event "*** Titled Tuesday Blitz"]
[Site "Chess.com"]
[Date "2019.01.01"]
[Round "9"]
[White "Viaje"]
[Black "Saitama_Hero"]
[Result "1-0"]
[WhiteElo "2345"]
[BlackElo "2361"]
[TimeControl "180+2"]
[EndTime "15:11:07 PST"]
[Termination "Viaje won by resignation"]

1. d4 {[%clk 0:03:01.9]} 1... Nf6 {[%clk 0:02:59.4]} 2. c4 {[%clk 0:03:03.3]}
2... g6 {[%clk 0:02:59.8]} 3. Nc3 {[%clk 0:03:03.8]} 3... Bg7 {[%clk 0:03:01.3]}
4. e4 {[%clk 0:03:04.7]} 4... d6 {[%clk 0:03:02.6]} 5. Be2 {[%clk 0:03:06.3]}
5... O-O {[%clk 0:03:03.8]} 6. Nf3 {[%clk 0:03:07.9]} 6... e5 {[%clk 0:03:05.1]}
7. O-O {[%clk 0:03:09.3]} 7... Nc6 {[%clk 0:03:06.3]} 8. d5 {[%clk 0:03:10.7]}
8... Ne7 {[%clk 0:03:07.8]} 9. Ne1 {[%clk 0:03:12.3]} 9... Nd7 {[%clk
0:03:09.3]} 10. f3 {[%clk 0:03:13.6]} 10... f5 {[%clk 0:03:10.8]} 11. g4 {[%clk
0:03:15.2]} 11... f4 {[%clk 0:03:09.2]} 12. h4 {[%clk 0:03:15.6]} 12... c6
{[%clk 0:03:07.2]} 13. Nd3 {[%clk 0:03:11.1]} 13... a6 {[%clk 0:03:02.5]} 14.
Kg2 {[%clk 0:03:07.7]} 14... b5 {[%clk 0:03:02.6]} 15. cxb5 {[%clk 0:02:57.6]}
15... cxd5 {[%clk 0:03:02.4]} 16. Rh1 {[%clk 0:02:53.4]} 16... d4 {[%clk
0:02:46.2]} 17. Qb3+ {[%clk 0:02:53.2]} 17... Kh8 {[%clk 0:02:45.7]} 18. Nd5
{[%clk 0:02:54.2]} 18... Nxd5 {[%clk 0:02:40]} 19. Qxd5 {[%clk 0:02:54.1]} 19...
Nb6 {[%clk 0:02:41.3]} 20. Qb3 {[%clk 0:02:52.3]} 20... axb5 {[%clk 0:02:40.8]}
21. h5 {[%clk 0:02:53.1]} 21... g5 {[%clk 0:02:40]} 22. h6 {[%clk 0:02:53.7]}
22... Bf6 {[%clk 0:02:41.4]} 23. Qxb5 {[%clk 0:02:47.7]} 23... Ba6 {[%clk
0:02:41.5]} 24. Qb3 {[%clk 0:02:48.7]} 24... d5 {[%clk 0:02:33.9]} 25. Qd1
{[%clk 0:02:24.7]} 25... dxe4 {[%clk 0:02:31.8]} 26. fxe4 {[%clk 0:02:26.6]}
26... Rc8 {[%clk 0:02:30.5]} 27. b3 {[%clk 0:02:27.2]} 27... Qd7 {[%clk
0:02:25.1]} 28. a4 {[%clk 0:02:22.7]} 28... Qb7 {[%clk 0:02:24.8]} 29. Bf3
{[%clk 0:02:18.8]} 29... Rc3 {[%clk 0:02:24.8]} 30. Nb4 {[%clk 0:02:16.9]} 30...
Nd7 {[%clk 0:02:18.1]} 31. Nxa6 {[%clk 0:02:01.1]} 31... Qxa6 {[%clk 0:02:20]}
32. Ba3 {[%clk 0:02:01.9]} 32... Rfc8 {[%clk 0:02:19.1]} 33. Rc1 {[%clk
0:01:59.8]} 33... Nb6 {[%clk 0:01:49.8]} 34. Rxc3 {[%clk 0:01:58]} 34... Rxc3
{[%clk 0:01:48.9]} 35. Bb4 {[%clk 0:01:53.7]} 35... Rc8 {[%clk 0:01:43.7]} 36.
Qd2 {[%clk 0:01:47.8]} 36... Qb7 {[%clk 0:01:35.6]} 37. Rc1 {[%clk 0:01:44.5]}
37... Rd8 {[%clk 0:01:32.8]} 38. Rc5 {[%clk 0:01:28.2]} 38... d3 {[%clk
0:01:30.1]} 39. Rb5 {[%clk 0:01:26.1]} 39... Qc6 {[%clk 0:01:24.6]} 40. Bc3
{[%clk 0:01:23.5]} 40... Nd7 {[%clk 0:01:20]} 41. Rd5 {[%clk 0:01:18.6]} 41...
Nc5 {[%clk 0:01:18]} 42. Rxd8+ {[%clk 0:01:18.9]} 42... Bxd8 {[%clk 0:01:17.1]}
43. Bxe5+ {[%clk 0:01:19]} 43... Bf6 {[%clk 0:01:17.9]} 44. Bxf6+ {[%clk
0:01:15.3]} 44... Qxf6 {[%clk 0:01:19.8]} 45. b4 {[%clk 0:01:15.6]} 45... Ne6
{[%clk 0:01:05.6]} 46. Qxd3 {[%clk 0:01:13.3]} 46... Qxh6 {[%clk 0:01:05.8]} 47.
Qc3+ {[%clk 0:01:03.1]} 47... Kg8 {[%clk 0:01:03.1]} 48. e5 {[%clk 0:01:02.9]}
48... Qh4 {[%clk 0:01:01.5]} 49. Qc8+ {[%clk 0:00:59]} 49... Nf8 {[%clk
0:00:46.6]} 50. Bd5+ {[%clk 0:00:49.4]} 50... Kg7 {[%clk 0:00:46.7]} 51. Qf5
{[%clk 0:00:35.5]} 51... Qg3+ {[%clk 0:00:38.3]} 52. Kf1 {[%clk 0:00:36.1]}
52... Ng6 {[%clk 0:00:26.7]} 53. Qf7+ {[%clk 0:00:35.5]} 53... Kh6 {[%clk
0:00:27.1]} 54. Qf5 {[%clk 0:00:25.8]} 54... Qh3+ {[%clk 0:00:15.6]} 55. Bg2
{[%clk 0:00:24.7]} 55... Qe3 {[%clk 0:00:15]} 56. Qe4 {[%clk 0:00:20]} 56...
Qc1+ {[%clk 0:00:11.6]} 57. Kf2 {[%clk 0:00:20.9]} 57... Qd2+ {[%clk 0:00:11.2]}
58. Kf1 {[%clk 0:00:21.4]} 58... Nh4 {[%clk 0:00:06.2]} 59. e6 {[%clk 0:00:21]}
59... Qd1+ {[%clk 0:00:03.5]} 60. Kf2 {[%clk 0:00:21.1]} 60... Qd2+ {[%clk
0:00:04.9]} 61. Kg1 {[%clk 0:00:21.9]} 61... Qd1+ {[%clk 0:00:05.7]} 62. Kh2
{[%clk 0:00:22.5]} 62... Qxg4 {[%clk 0:00:06.3]} 63. e7 {[%clk 0:00:21.9]} 63...
Qg3+ {[%clk 0:00:07.3]} 64. Kg1 {[%clk 0:00:22.5]} 64... f3 {[%clk 0:00:07]} 65.
Qe6+ {[%clk 0:00:22.3]} 65... Ng6 {[%clk 0:00:06.7]} 66. Qh3+ {[%clk 0:00:22.4]}
66... Qxh3 {[%clk 0:00:05.2]} 67. Bxh3 {[%clk 0:00:24.3]} 67... Nxe7 {[%clk
0:00:04.9]} 68. b5 {[%clk 0:00:24.5]} 68... Nd5 {[%clk 0:00:02.6]} 69. a5 {[%clk
0:00:24.6]} 69... Nc7 {[%clk 0:00:04.5]} 70. b6 {[%clk 0:00:23.4]} 70... Na6
{[%clk 0:00:05.5]} 71. Bf1 {[%clk 0:00:23.4]} 71... Nb8 {[%clk 0:00:06.4]} 72.
a6 {[%clk 0:00:24.6]} 72... Nd7 {[%clk 0:00:04.5]} 1-0

[Event "*** Titled Tuesday Blitz"]
[Site "Chess.com"]
[Date "2019.01.01"]
[Round "9"]
[White "PlotnikovPavel"]
[Black "NTBT_DHS"]
[Result "0-1"]
[WhiteElo "2391"]
[BlackElo "2694"]
[TimeControl "180+2"]
[EndTime "15:11:12 PST"]
[Termination "NTBT_DHS won by checkmate"]

1. d4 {[%clk 0:02:58.2]} 1... Nf6 {[%clk 0:03:00.7]} 2. Nf3 {[%clk 0:02:59.6]}
2... g6 {[%clk 0:03:02.1]} 3. c4 {[%clk 0:03:00.9]} 3... Bg7 {[%clk 0:03:03.7]}
4. Nc3 {[%clk 0:03:01.1]} 4... O-O {[%clk 0:03:05.6]} 5. e4 {[%clk 0:03:02.3]}
5... d6 {[%clk 0:03:06.1]} 6. Be2 {[%clk 0:03:03.2]} 6... e5 {[%clk 0:03:07.1]}
7. dxe5 {[%clk 0:02:56.7]} 7... dxe5 {[%clk 0:03:07.5]} 8. Qxd8 {[%clk
0:02:58.1]} 8... Rxd8 {[%clk 0:03:09.4]} 9. Bg5 {[%clk 0:02:59.5]} 9... Be6
{[%clk 0:03:09.9]} 10. Nd5 {[%clk 0:02:58.1]} 10... Bxd5 {[%clk 0:03:10.3]} 11.
cxd5 {[%clk 0:02:56.3]} 11... c6 {[%clk 0:03:11.5]} 12. Bc4 {[%clk 0:02:49.5]}
12... b5 {[%clk 0:03:12.7]} 13. Bb3 {[%clk 0:02:50.3]} 13... a5 {[%clk
0:03:03.5]} 14. a4 {[%clk 0:02:41.8]} 14... bxa4 {[%clk 0:03:03]} 15. Rxa4
{[%clk 0:02:41.4]} 15... Nbd7 {[%clk 0:03:03.5]} 16. dxc6 {[%clk 0:02:07.9]}
16... Nc5 {[%clk 0:03:01.2]} 17. Ra3 {[%clk 0:02:09.2]} 17... Ncxe4 {[%clk
0:02:41.2]} 18. Be3 {[%clk 0:02:10.1]} 18... Nd5 {[%clk 0:02:08.9]} 19. Bxd5
{[%clk 0:01:55.8]} 19... Rxd5 {[%clk 0:02:10.8]} 20. Ke2 {[%clk 0:01:54]} 20...
Rc8 {[%clk 0:02:10.3]} 21. Rc1 {[%clk 0:01:53.9]} 21... Rb5 {[%clk 0:02:10.9]}
22. Rc2 {[%clk 0:01:51.7]} 22... f5 {[%clk 0:02:08]} 23. g3 {[%clk 0:01:47.2]}
23... Nf6 {[%clk 0:02:02.7]} 24. Bd2 {[%clk 0:01:25.9]} 24... e4 {[%clk
0:01:04.5]} 25. Nd4 {[%clk 0:01:26.5]} 25... Rd5 {[%clk 0:01:04.9]} 26. Ne6
{[%clk 0:01:24.7]} 26... Rd6 {[%clk 0:01:01.7]} 27. Nxg7 {[%clk 0:01:22]} 27...
Kxg7 {[%clk 0:01:03.6]} 28. Rxa5 {[%clk 0:01:03.6]} 28... Rdxc6 {[%clk
0:01:02.3]} 29. Ra7+ {[%clk 0:01:04.5]} 29... Kg8 {[%clk 0:00:59.8]} 30. Rxc6
{[%clk 0:01:03.8]} 30... Rxc6 {[%clk 0:01:01.7]} 31. b4 {[%clk 0:01:01]} 31...
Nd5 {[%clk 0:01:02.6]} 32. Rd7 {[%clk 0:00:55.1]} 32... Nb6 {[%clk 0:01:02.4]}
33. Rb7 {[%clk 0:00:56.1]} 33... Nd5 {[%clk 0:00:57.2]} 34. b5 {[%clk
0:00:52.5]} 34... Rc2 {[%clk 0:00:57.9]} 35. Kd1 {[%clk 0:00:50.5]} 35... Ra2
{[%clk 0:00:55.9]} 36. Rd7 {[%clk 0:00:50]} 36... Nb6 {[%clk 0:00:54.2]} 37. Rd6
{[%clk 0:00:25.4]} 37... Nc4 {[%clk 0:00:53.3]} 38. Rd4 {[%clk 0:00:25.2]} 38...
Nb2+ {[%clk 0:00:51.3]} 39. Ke2 {[%clk 0:00:22.6]} 39... Nd3 {[%clk 0:00:49.6]}
40. Ke3 {[%clk 0:00:16.6]} 40... Rb2 {[%clk 0:00:50.2]} 41. Rd5 {[%clk
0:00:16.5]} 41... Rb3 {[%clk 0:00:45.6]} 42. Kd4 {[%clk 0:00:16.1]} 42... Nxf2
{[%clk 0:00:46.3]} 43. Kc4 {[%clk 0:00:16.3]} 43... Rb2 {[%clk 0:00:43.7]} 44.
Bc3 {[%clk 0:00:17.4]} 44... Rb1 {[%clk 0:00:44.5]} 45. Bd4 {[%clk 0:00:15.4]}
45... Ng4 {[%clk 0:00:39.1]} 46. b6 {[%clk 0:00:15.9]} 46... e3 {[%clk
0:00:39.7]} 47. Rb5 {[%clk 0:00:16.5]} 47... Rxb5 {[%clk 0:00:32.4]} 48. Kxb5
{[%clk 0:00:17.3]} 48... e2 {[%clk 0:00:34]} 49. Bc3 {[%clk 0:00:16.9]} 49...
Ne5 {[%clk 0:00:23.1]} 50. b7 {[%clk 0:00:16.6]} 50... Nd7 {[%clk 0:00:24.3]}
51. Kc6 {[%clk 0:00:17.7]} 51... Nb8+ {[%clk 0:00:25.4]} 52. Kc7 {[%clk
0:00:17.7]} 52... Na6+ {[%clk 0:00:26.5]} 53. Kb6 {[%clk 0:00:17.2]} 53... Nb8
{[%clk 0:00:27.2]} 54. Kc5 {[%clk 0:00:16.1]} 54... Kf7 {[%clk 0:00:27.4]} 55.
Kd4 {[%clk 0:00:17.3]} 55... Ke6 {[%clk 0:00:27.2]} 56. Ke3 {[%clk 0:00:18.5]}
56... Kd7 {[%clk 0:00:28.6]} 57. Kxe2 {[%clk 0:00:18.4]} 57... Kc6 {[%clk
0:00:29.9]} 58. Be5 {[%clk 0:00:16.7]} 58... Kxb7 {[%clk 0:00:30.8]} 59. Bxb8
{[%clk 0:00:11.7]} 59... Kxb8 {[%clk 0:00:31.8]} 60. Kf3 {[%clk 0:00:13.6]}
60... Kc7 {[%clk 0:00:33.1]} 61. Kf4 {[%clk 0:00:14.7]} 61... Kd6 {[%clk
0:00:34.4]} 62. Kg5 {[%clk 0:00:16.2]} 62... Ke6 {[%clk 0:00:33.9]} 63. Kh6
{[%clk 0:00:17.3]} 63... Kf6 {[%clk 0:00:35]} 64. h4 {[%clk 0:00:17]} 64... Ke6
{[%clk 0:00:20.9]} 65. Kxh7 {[%clk 0:00:17.1]} 65... Kf7 {[%clk 0:00:22.1]} 66.
Kh6 {[%clk 0:00:17.3]} 66... Kf6 {[%clk 0:00:23.5]} 67. h5 {[%clk 0:00:18.8]}
67... g5 {[%clk 0:00:24.8]} 68. Kh7 {[%clk 0:00:18.9]} 68... f4 {[%clk
0:00:26.2]} 69. gxf4 {[%clk 0:00:19.1]} 69... g4 {[%clk 0:00:27.7]} 70. h6
{[%clk 0:00:18.5]} 70... g3 {[%clk 0:00:29.1]} 71. Kh8 {[%clk 0:00:19.9]} 71...
g2 {[%clk 0:00:29.7]} 72. f5 {[%clk 0:00:20.4]} 72... g1=Q {[%clk 0:00:30.8]}
73. h7 {[%clk 0:00:21.9]} 73... Qg7# {[%clk 0:00:31.6]} 0-1

[Event "*** Titled Tuesday Blitz"]
[Site "Chess.com"]
[Date "2019.01.01"]
[Round "9"]
[White "Bigfish1995"]
[Black "Peng_Li-Min"]
[Result "0-1"]
[WhiteElo "2897"]
[BlackElo "2705"]
[TimeControl "180+2"]
[EndTime "15:12:37 PST"]
[Termination "Peng_Li-Min won by resignation"]

1. d4 {[%clk 0:02:59.9]} 1... Nf6 {[%clk 0:02:58.9]} 2. Nf3 {[%clk 0:03:01.1]}
2... g6 {[%clk 0:03:00]} 3. c4 {[%clk 0:02:57.1]} 3... Bg7 {[%clk 0:03:01.9]} 4.
Nc3 {[%clk 0:02:58.2]} 4... d5 {[%clk 0:03:02.8]} 5. e3 {[%clk 0:02:54.3]} 5...
O-O {[%clk 0:03:04.3]} 6. Qb3 {[%clk 0:02:55.3]} 6... dxc4 {[%clk 0:02:52.9]} 7.
Bxc4 {[%clk 0:02:55.1]} 7... c5 {[%clk 0:02:52.8]} 8. dxc5 {[%clk 0:02:54.4]}
8... Nbd7 {[%clk 0:02:53.2]} 9. Qa3 {[%clk 0:02:38.4]} 9... Qc7 {[%clk 0:02:51]}
10. b4 {[%clk 0:02:39.4]} 10... a5 {[%clk 0:02:27.1]} 11. Nb5 {[%clk 0:02:37.5]}
11... Qb8 {[%clk 0:02:28.3]} 12. Bb2 {[%clk 0:02:34.8]} 12... axb4 {[%clk
0:02:04.2]} 13. Qxb4 {[%clk 0:02:35.3]} 13... Ne4 {[%clk 0:02:05.2]} 14. Bxg7
{[%clk 0:02:22.9]} 14... Kxg7 {[%clk 0:02:07.1]} 15. Bxf7 {[%clk 0:02:12.1]}
15... Ndxc5 {[%clk 0:01:54.5]} 16. Bc4 {[%clk 0:02:07.5]} 16... b6 {[%clk
0:01:23.7]} 17. Qb2+ {[%clk 0:02:00.5]} 17... Rf6 {[%clk 0:01:23.5]} 18. O-O
{[%clk 0:02:01.2]} 18... Bb7 {[%clk 0:01:23]} 19. Nfd4 {[%clk 0:01:58]} 19...
Nd6 {[%clk 0:01:18.7]} 20. Nxd6 {[%clk 0:01:49.9]} 20... Qxd6 {[%clk 0:01:20.6]}
21. f4 {[%clk 0:01:47.5]} 21... Ba6 {[%clk 0:00:57.1]} 22. Bxa6 {[%clk
0:01:40.7]} 22... Rxa6 {[%clk 0:00:59]} 23. Rad1 {[%clk 0:01:41]} 23... Qc7
{[%clk 0:00:51.5]} 24. g4 {[%clk 0:01:38.9]} 24... Kg8 {[%clk 0:00:50.2]} 25.
Nb5 {[%clk 0:01:30.8]} 25... Qc8 {[%clk 0:00:48.2]} 26. g5 {[%clk 0:01:30.2]}
26... Rf5 {[%clk 0:00:47]} 27. Rd4 {[%clk 0:01:23.2]} 27... Qe6 {[%clk
0:00:42.9]} 28. e4 {[%clk 0:01:14.8]} 28... Rf8 {[%clk 0:00:40.5]} 29. Nc7
{[%clk 0:01:15.5]} 29... Qxa2 {[%clk 0:00:38.5]} 30. Qxa2+ {[%clk 0:00:59.8]}
30... Rxa2 {[%clk 0:00:40.4]} 31. Nd5 {[%clk 0:01:01.1]} 31... e5 {[%clk
0:00:28.2]} 32. fxe5 {[%clk 0:00:58.2]} 32... Rxf1+ {[%clk 0:00:30.1]} 33. Kxf1
{[%clk 0:00:59.5]} 33... Kf7 {[%clk 0:00:30.4]} 34. Nxb6 {[%clk 0:00:25.1]}
34... Ke6 {[%clk 0:00:25.5]} 35. Nc4 {[%clk 0:00:23.6]} 35... Rxh2 {[%clk
0:00:23.1]} 36. Rd6+ {[%clk 0:00:18.3]} 36... Ke7 {[%clk 0:00:24.2]} 37. Ne3
{[%clk 0:00:11.6]} 37... Nxe4 {[%clk 0:00:19.1]} 38. Nd5+ {[%clk 0:00:12.4]}
38... Kf8 {[%clk 0:00:20.6]} 39. Rd8+ {[%clk 0:00:05.7]} 39... Kf7 {[%clk
0:00:20.5]} 40. Kg1 {[%clk 0:00:05.4]} 40... Rh5 {[%clk 0:00:16.4]} 41. e6+
{[%clk 0:00:02.3]} 41... Kxe6 {[%clk 0:00:16.6]} 42. Nf4+ {[%clk 0:00:03.7]}
42... Ke7 {[%clk 0:00:17.4]} 43. Rd4 {[%clk 0:00:05]} 43... Rxg5+ {[%clk
0:00:18.5]} 44. Kh2 {[%clk 0:00:06.6]} 44... Nf6 {[%clk 0:00:19]} 45. Ra4 {[%clk
0:00:07.1]} 45... Rg4 {[%clk 0:00:20]} 46. Kh3 {[%clk 0:00:08.2]} 46... h5
{[%clk 0:00:20.9]} 47. Ra7+ {[%clk 0:00:08.5]} 47... Kd6 {[%clk 0:00:21.8]} 48.
Ra6+ {[%clk 0:00:09.9]} 48... Ke5 {[%clk 0:00:22.2]} 49. Nd3+ {[%clk 0:00:11.3]}
49... Kf5 {[%clk 0:00:23.3]} 50. Ra5+ {[%clk 0:00:12.7]} 50... Ke6 {[%clk
0:00:23.9]} 51. Ra6+ {[%clk 0:00:14]} 51... Kf7 {[%clk 0:00:24.9]} 52. Ne5+
{[%clk 0:00:15]} 52... Kg7 {[%clk 0:00:26.2]} 53. Nxg4 {[%clk 0:00:15.8]} 53...
Nxg4 {[%clk 0:00:27.1]} 54. Kh4 {[%clk 0:00:17.3]} 54... Kh6 {[%clk 0:00:27.8]}
55. Re6 {[%clk 0:00:18.4]} 55... Nf2 {[%clk 0:00:27.3]} 56. Kg3 {[%clk
0:00:19.8]} 56... Ng4 {[%clk 0:00:28.3]} 57. Kf4 {[%clk 0:00:21.1]} 57... Nh2
{[%clk 0:00:29]} 58. Rd6 {[%clk 0:00:20.3]} 58... Ng4 {[%clk 0:00:30]} 59. Rc6
{[%clk 0:00:20.2]} 59... Nh2 {[%clk 0:00:31.2]} 60. Rc2 {[%clk 0:00:15.6]} 60...
Ng4 {[%clk 0:00:32.5]} 61. Re2 {[%clk 0:00:16.9]} 61... Nf6 {[%clk 0:00:33.1]}
62. Rd2 {[%clk 0:00:13.5]} 62... Ng4 {[%clk 0:00:34.4]} 63. Rg2 {[%clk
0:00:08.8]} 63... Nf6 {[%clk 0:00:35]} 64. Ke5 {[%clk 0:00:09.5]} 64... Ng4+
{[%clk 0:00:35.8]} 65. Kf4 {[%clk 0:00:10.7]} 65... Nf6 {[%clk 0:00:36.4]} 66.
Re2 {[%clk 0:00:10.5]} 66... Ng4 {[%clk 0:00:37.4]} 67. Re6 {[%clk 0:00:11.4]}
67... Nh2 {[%clk 0:00:38.4]} 68. Ra6 {[%clk 0:00:12.1]} 68... Ng4 {[%clk
0:00:39.8]} 69. Rb6 {[%clk 0:00:13.1]} 69... Nh2 {[%clk 0:00:37.8]} 70. Ke5
{[%clk 0:00:13.4]} 70... Ng4+ {[%clk 0:00:39]} 71. Ke6 {[%clk 0:00:14.3]} 71...
h4 {[%clk 0:00:38.1]} 72. Rb3 {[%clk 0:00:14.2]} 72... Kh5 {[%clk 0:00:37.3]}
73. Kd5 {[%clk 0:00:14.8]} 73... Nf2 {[%clk 0:00:33]} 74. Rf3 {[%clk 0:00:15.3]}
74... Nh1 {[%clk 0:00:33.9]} 75. Ke4 {[%clk 0:00:16]} 75... Kg4 {[%clk
0:00:32.1]} 76. Rf4+ {[%clk 0:00:16]} 76... Kg3 {[%clk 0:00:33.5]} 77. Rf6
{[%clk 0:00:17.2]} 77... g5 {[%clk 0:00:27]} 78. Kf5 {[%clk 0:00:15.7]} 78... g4
{[%clk 0:00:25]} 79. Ra6 {[%clk 0:00:16.6]} 79... Nf2 {[%clk 0:00:23.7]} 80.
Ra3+ {[%clk 0:00:17.4]} 80... Kg2 {[%clk 0:00:25]} 81. Kf4 {[%clk 0:00:13.3]}
81... g3 {[%clk 0:00:25.5]} 82. Rc3 {[%clk 0:00:10]} 82... Kh2 {[%clk
0:00:24.9]} 83. Rc2 {[%clk 0:00:09.2]} 83... h3 {[%clk 0:00:24.3]} 84. Kf3
{[%clk 0:00:10.6]} 84... g2 {[%clk 0:00:18.3]} 85. Rxf2 {[%clk 0:00:03.4]} 85...
Kh1 {[%clk 0:00:19.5]} 86. Re2 {[%clk 0:00:03.5]} 86... g1=Q {[%clk 0:00:18.2]}
0-1

[Event "*** Titled Tuesday Blitz"]
[Site "Chess.com"]
[Date "2019.01.01"]
[Round "9"]
[White "Peroncio"]
[Black "1e41-0"]
[Result "0-1"]
[WhiteElo "2636"]
[BlackElo "2581"]
[TimeControl "180+2"]
[EndTime "15:13:00 PST"]
[Termination "1e41-0 won by checkmate"]

1. e4 {[%clk 0:03:01.9]} 1... e6 {[%clk 0:03:00.6]} 2. d4 {[%clk 0:03:03]} 2...
d5 {[%clk 0:03:02.3]} 3. Nd2 {[%clk 0:03:03.8]} 3... Be7 {[%clk 0:03:03.3]} 4.
Ngf3 {[%clk 0:03:04.6]} 4... Nf6 {[%clk 0:03:04]} 5. e5 {[%clk 0:03:05.8]} 5...
Nfd7 {[%clk 0:03:05.5]} 6. Bd3 {[%clk 0:03:06.8]} 6... c5 {[%clk 0:03:06.8]} 7.
c3 {[%clk 0:03:08]} 7... b6 {[%clk 0:03:08.1]} 8. O-O {[%clk 0:03:09.6]} 8...
Ba6 {[%clk 0:03:08.9]} 9. Bxa6 {[%clk 0:03:09]} 9... Nxa6 {[%clk 0:03:10.8]} 10.
c4 {[%clk 0:03:04.3]} 10... O-O {[%clk 0:03:06]} 11. cxd5 {[%clk 0:03:02.7]}
11... exd5 {[%clk 0:03:07.9]} 12. Re1 {[%clk 0:02:41]} 12... Nc7 {[%clk
0:03:07.6]} 13. Nf1 {[%clk 0:02:41.2]} 13... Ne6 {[%clk 0:03:06.5]} 14. Ne3
{[%clk 0:02:40.6]} 14... cxd4 {[%clk 0:03:00.8]} 15. Nxd5 {[%clk 0:02:40.3]}
15... Ndc5 {[%clk 0:02:22.1]} 16. Nxe7+ {[%clk 0:02:40.3]} 16... Qxe7 {[%clk
0:02:24]} 17. Nxd4 {[%clk 0:02:11.2]} 17... Nxd4 {[%clk 0:02:23.9]} 18. Qxd4
{[%clk 0:02:12.8]} 18... Rad8 {[%clk 0:02:24.4]} 19. Qb4 {[%clk 0:02:12]} 19...
Qe6 {[%clk 0:02:20]} 20. Bg5 {[%clk 0:01:31.4]} 20... Nd3 {[%clk 0:01:52.2]} 21.
Qh4 {[%clk 0:01:32.6]} 21... Rd5 {[%clk 0:01:45.2]} 22. Red1 {[%clk 0:01:14]}
22... Nxe5 {[%clk 0:01:42.2]} 23. Qe4 {[%clk 0:01:03.4]} 23... Nf3+ {[%clk
0:01:30.5]} 24. Qxf3 {[%clk 0:01:01.9]} 24... Rxg5 {[%clk 0:01:31.1]} 25. g3
{[%clk 0:01:01.2]} 25... Re5 {[%clk 0:01:28.3]} 26. h4 {[%clk 0:01:00.9]} 26...
Re8 {[%clk 0:01:27.3]} 27. a4 {[%clk 0:01:00]} 27... h6 {[%clk 0:01:28]} 28. b4
{[%clk 0:01:00.2]} 28... Re4 {[%clk 0:01:22.9]} 29. Rab1 {[%clk 0:00:47.7]}
29... Qg6 {[%clk 0:01:17]} 30. Rbc1 {[%clk 0:00:32.8]} 30... Rxb4 {[%clk
0:01:03.8]} 31. a5 {[%clk 0:00:34.3]} 31... Rbe4 {[%clk 0:01:01.2]} 32. Rc7
{[%clk 0:00:31.8]} 32... bxa5 {[%clk 0:00:59]} 33. Rxa7 {[%clk 0:00:32.2]} 33...
a4 {[%clk 0:00:55.9]} 34. Rdd7 {[%clk 0:00:32.5]} 34... Rf8 {[%clk 0:00:55.2]}
35. Kg2 {[%clk 0:00:19.4]} 35... Rxh4 {[%clk 0:00:37.6]} 36. Rdc7 {[%clk
0:00:20]} 36... Rd4 {[%clk 0:00:36.4]} 37. Rc6 {[%clk 0:00:20.5]} 37... Qe4
{[%clk 0:00:36.8]} 38. Qxe4 {[%clk 0:00:16.1]} 38... Rxe4 {[%clk 0:00:38.7]} 39.
Rca6 {[%clk 0:00:17.4]} 39... g6 {[%clk 0:00:40.1]} 40. Rxa4 {[%clk 0:00:18.4]}
40... Rxa4 {[%clk 0:00:41.8]} 41. Rxa4 {[%clk 0:00:20.1]} 41... Kg7 {[%clk
0:00:43.7]} 42. Ra7 {[%clk 0:00:20.1]} 42... h5 {[%clk 0:00:44.5]} 43. Rb7
{[%clk 0:00:21.6]} 43... Rc8 {[%clk 0:00:45.3]} 44. Ra7 {[%clk 0:00:23]} 44...
Rc6 {[%clk 0:00:43.6]} 45. Rb7 {[%clk 0:00:24.3]} 45... Kf6 {[%clk 0:00:44.3]}
46. Ra7 {[%clk 0:00:25.6]} 46... Ke6 {[%clk 0:00:44.2]} 47. Rb7 {[%clk
0:00:27.1]} 47... Rc5 {[%clk 0:00:44.1]} 48. Ra7 {[%clk 0:00:27.5]} 48... f6
{[%clk 0:00:44]} 49. Rg7 {[%clk 0:00:28.4]} 49... Kf5 {[%clk 0:00:45]} 50. Ra7
{[%clk 0:00:30]} 50... Kg5 {[%clk 0:00:41]} 51. Rb7 {[%clk 0:00:30.4]} 51... f5
{[%clk 0:00:41]} 52. Rb4 {[%clk 0:00:32]} 52... Rc2 {[%clk 0:00:40.4]} 53. Ra4
{[%clk 0:00:32.6]} 53... Re2 {[%clk 0:00:40.2]} 54. Kf3 {[%clk 0:00:34]} 54...
Rb2 {[%clk 0:00:40.7]} 55. Rc4 {[%clk 0:00:34.7]} 55... Rb3+ {[%clk 0:00:41.5]}
56. Kg2 {[%clk 0:00:36.2]} 56... Rb6 {[%clk 0:00:40.6]} 57. Ra4 {[%clk
0:00:37.3]} 57... Kf6 {[%clk 0:00:41.7]} 58. Rc4 {[%clk 0:00:37.6]} 58... g5
{[%clk 0:00:42.7]} 59. Rc8 {[%clk 0:00:38.4]} 59... h4 {[%clk 0:00:30]} 60. Rh8
{[%clk 0:00:38.2]} 60... Kg7 {[%clk 0:00:29.7]} 61. Rc8 {[%clk 0:00:38.6]} 61...
hxg3 {[%clk 0:00:29.4]} 62. Kxg3 {[%clk 0:00:39.7]} 62... Rb3+ {[%clk
0:00:29.3]} 63. Kg2 {[%clk 0:00:38.4]} 63... Kg6 {[%clk 0:00:29.9]} 64. Rg8+
{[%clk 0:00:38.2]} 64... Kh5 {[%clk 0:00:28.9]} 65. Ra8 {[%clk 0:00:38.4]} 65...
Kg4 {[%clk 0:00:28.1]} 66. Ra4+ {[%clk 0:00:37.4]} 66... f4 {[%clk 0:00:29.3]}
67. Ra2 {[%clk 0:00:37.3]} 67... Rc3 {[%clk 0:00:19.5]} 68. Rb2 {[%clk
0:00:36.6]} 68... Rd3 {[%clk 0:00:20.4]} 69. Rc2 {[%clk 0:00:37.7]} 69... Ra3
{[%clk 0:00:21.3]} 70. Rb2 {[%clk 0:00:37.6]} 70... f3+ {[%clk 0:00:21.5]} 71.
Kh2 {[%clk 0:00:38.6]} 71... Ra4 {[%clk 0:00:20.4]} 72. Rc2 {[%clk 0:00:39.5]}
72... Re4 {[%clk 0:00:21.3]} 73. Rb2 {[%clk 0:00:36.1]} 73... Kf4 {[%clk
0:00:22.4]} 74. Ra2 {[%clk 0:00:31.8]} 74... g4 {[%clk 0:00:23.6]} 75. Ra8
{[%clk 0:00:31.8]} 75... g3+ {[%clk 0:00:22]} 76. fxg3+ {[%clk 0:00:31.8]} 76...
Ke3 {[%clk 0:00:23.5]} 77. Ra3+ {[%clk 0:00:32.4]} 77... Kf2 {[%clk 0:00:24.4]}
78. Kh3 {[%clk 0:00:32.4]} 78... Re3 {[%clk 0:00:21.6]} 79. Ra2+ {[%clk
0:00:32.6]} 79... Re2 {[%clk 0:00:22.9]} 80. Ra3 {[%clk 0:00:33.2]} 80... Re3
{[%clk 0:00:18.1]} 81. Ra2+ {[%clk 0:00:31.6]} 81... Ke1 {[%clk 0:00:19.5]} 82.
Ra1+ {[%clk 0:00:25.4]} 82... Ke2 {[%clk 0:00:20.4]} 83. Ra2+ {[%clk 0:00:25.8]}
83... Kf1 {[%clk 0:00:20.7]} 84. Ra1+ {[%clk 0:00:26.9]} 84... Re1 {[%clk
0:00:21.6]} 85. Ra2 {[%clk 0:00:24.3]} 85... f2 {[%clk 0:00:20.8]} 86. g4 {[%clk
0:00:23.8]} 86... Kg1 {[%clk 0:00:18.9]} 87. Rxf2 {[%clk 0:00:20.8]} 87... Kxf2
{[%clk 0:00:20.8]} 88. g5 {[%clk 0:00:20.3]} 88... Kf3 {[%clk 0:00:21.9]} 89.
Kh4 {[%clk 0:00:21.3]} 89... Rh1# {[%clk 0:00:22.6]} 0-1